lending/lending_fUSD_20241120
["ID","MTS","AMOUNT","RATE_DAILY","PERIOD"]
[342736559,1732090308991,-500.0,0.00056438,30]
[342736560,1732090309001,-998.06,0.00056438,120]
[342736561,1732090309011,-500.0,0.00056438,120]
[342736562,1732090309022,-500.0,0.00056438,120]
[342736563,1732090309032,-500.0,0.00056438,120]
[342736564,1732090309042,-2581.57,0.00056438,120]
[342736565,1732090309052,-500.0,0.00056438,120]
[342736566,1732090309062,-500.0,0.00056438,120]
[342736567,1732090309071,-635.36,0.00056438,120]
[342736568,1732090309081,-500.0,0.00056438,120]
[342736569,1732090309090,-500.0,0.00056438,120]
[342736570,1732090309100,-500.0,0.00056438,120]
[342736571,1732090309109,-500.0,0.00056438,120]
[342736572,1732090309119,-500.0,0.00056438,120]
[342736573,1732090309128,-500.0,0.00056438,120]
[342736574,1732090309138,-3061.68,0.00056438,120]
[342736575,1732090309147,-500.0,0.00056438,120]
[342736576,1732090309156,-2031.6,0.00056438,120]
[342736577,1732090309166,-500.0,0.00056438,120]
[342736578,1732090309176,-500.0,0.00056438,120]
[342736579,1732090309185,-500.0,0.00056438,120]
[342736580,1732090309195,-500.0,0.00056438,120]
[342736581,1732090309204,-3206.56,0.00056438,120]
[342736582,1732090309213,-500.0,0.00056438,120]
[342736583,1732090309222,-711.44,0.00056438,120]
[342736584,1732090309231,-500.0,0.00056438,120]
[342736585,1732090309241,-500.0,0.00056438,120]
[342736586,1732090309250,-502.85029964,0.00056438,120]
[342736587,1732090309259,-500.0,0.00056438,120]
[342736588,1732090309268,-500.0,0.00056438,120]
[342736589,1732090309279,-729.82,0.00056438,120]
[342736590,1732090309288,-5192.93,0.00056438,120]
[342736591,1732090309300,-500.0,0.00056438,120]
[342736592,1732090309310,-500.0,0.00056438,120]
[342736593,1732090309319,-505.94693154,0.00056438,120]
[342736594,1732090309329,-500.0,0.00056438,120]
[342736595,1732090309339,-500.0,0.00056438,120]
[342736596,1732090309348,-567.96561387,0.00056438,120]
[342736597,1732090309358,-445.14376539,0.00056438,120]
[342736598,1732090309367,-500.0,0.00056438,120]
[342736599,1732090309378,-500.0,0.00056438,120]
[342736600,1732090309388,-500.0,0.00056438,120]
[342736601,1732090309397,-193.06987809,0.00056438,120]
[342736602,1732090309407,-500.0,0.00056438,120]
[342736603,1732090309416,-500.0,0.00056438,120]
[342736604,1732090309426,-507.61393997,0.00056438,120]
[342736605,1732090309435,-500.0,0.00056438,120]
[342736606,1732090309444,-430.73356604,0.00056438,20]
[342736607,1732090309454,-500.0,0.00056438,120]
[342736608,1732090309463,-500.0,0.00056438,120]
[342736609,1732090309472,-498.16495679,0.00056438,120]
[342736610,1732090309482,-500.0,0.00056438,120]
[342736611,1732090309492,-500.0,0.00056438,120]
[342736612,1732090309501,-707.74,0.00056438,120]
[342736613,1732090309511,-500.0,0.00056438,120]
[342736614,1732090309520,-647.87,0.00056438,120]
[342736615,1732090309532,-500.0,0.00056438,120]
[342736616,1732090309541,-500.0,0.00056438,120]
[342736617,1732090309551,-500.0,0.00056438,120]
[342736618,1732090309560,-500.0,0.00056438,120]
[342736619,1732090309570,-720.2,0.00056438,120]
[342736620,1732090309579,-500.0,0.00056438,120]
[342736621,1732090309588,-500.0,0.00056438,120]
[342736622,1732090309597,-500.0,0.00056438,120]
[342736623,1732090309607,-717.59,0.00056438,120]
[342736624,1732090309616,-1703.66,0.00056438,120]
[342736625,1732090309626,-422.61366195,0.00056438,120]
[342736626,1732090309635,-508.31,0.00056438,120]
[342736627,1732090309644,-500.0,0.00056438,120]
[342736628,1732090309654,-500.0,0.00056438,120]
[342736629,1732090309663,-500.0,0.00056438,120]
[342736630,1732090309672,-500.0,0.00056438,120]
[342736631,1732090309681,-500.0,0.00056438,120]
[342736632,1732090309691,-500.0,0.00056438,120]
[342736633,1732090309701,-500.0,0.00056438,120]
[342736634,1732090309710,-507.65244033,0.00056438,120]
[342736635,1732090309719,-500.0,0.00056438,120]
[342736636,1732090309729,-2604.2,0.00056438,120]
[342736637,1732090309738,-500.0,0.00056438,120]
[342736638,1732090309748,-2810.53,0.00056438,120]
[342736639,1732090309757,-500.0,0.00056438,120]
[342736640,1732090309767,-500.0,0.00056438,120]
[342736641,1732090309779,-500.0,0.00056438,120]
[342736642,1732090309789,-2080.78,0.00056438,120]
[342736643,1732090309799,-500.0,0.00056438,120]
[342736644,1732090309809,-500.22,0.00056438,120]
[342736645,1732090309818,-411.2241539,0.00056438,120]
[342736646,1732090309827,-1137.2,0.00056438,3]
[342736647,1732090309837,-642.24,0.00056438,30]
[342736648,1732090309847,-1301.4,0.00056438,120]
[342736649,1732090309857,-500.0,0.00056438,120]
[342736650,1732090309866,-500.0,0.00056438,120]
[342736651,1732090309876,-500.0,0.00056438,120]
[342736652,1732090309885,-500.0,0.00056438,120]
[342736653,1732090309895,-505.72,0.00056438,120]
[342736654,1732090309905,-500.0,0.00056438,120]
[342736655,1732090309915,-500.0,0.00056438,120]
[342736656,1732090309926,-500.0,0.00056438,120]
[342736657,1732090309936,-500.0,0.00056438,120]
[342736658,1732090309946,-225.39199851,0.00056438,120]
[342736659,1732090309955,-500.0,0.00056438,120]
[342736660,1732090309965,-500.0,0.00056438,120]
[342736661,1732090309974,-500.0,0.00056438,120]
[342736662,1732090309983,-946.93,0.00056438,120]
[342736663,1732090309993,-500.0,0.00056438,120]
[342736664,1732090310003,-500.0,0.00056438,120]
[342736665,1732090310012,-500.0,0.00056438,120]
[342736666,1732090310021,-500.0,0.00056438,120]
[342736667,1732090310032,-667.95,0.00056438,120]
[342736668,1732090310042,-500.0,0.00056438,120]
[342736669,1732090310051,-506.60687013,0.00056438,120]
[342736670,1732090310061,-500.0,0.00056438,120]
[342736671,1732090310070,-500.0,0.00056438,120]
[342736672,1732090310080,-162.51733288,0.00056438,120]
[342736673,1732090310089,-500.0,0.00056438,120]
[342736674,1732090310099,-500.0,0.00056438,120]
[342736675,1732090310108,-500.0,0.00056438,120]
[342736676,1732090310117,-500.0,0.00056438,120]
[342736677,1732090310127,-500.0,0.00056438,120]
[342736678,1732090310136,-500.0,0.00056438,120]
[342736679,1732090310147,-500.0,0.00056438,120]
[342736680,1732090310156,-500.0,0.00056438,120]
[342736681,1732090310167,-500.0,0.00056438,120]
[342736682,1732090310178,-852.9,0.00056438,120]
[342736683,1732090310188,-500.0,0.00056438,120]
[342736684,1732090310198,-500.0,0.00056438,120]
[342736685,1732090310207,-500.0,0.00056438,120]
[342736686,1732090310217,-1322.0,0.00056609,30]
[342736687,1732090310227,-521.82149721,0.00056711,120]
[342736688,1732090310237,-500.0,0.00056711,120]
[342736689,1732090310246,-500.0,0.00056711,120]
[342736690,1732090310256,-500.0,0.00056711,120]
[342736691,1732090310266,-500.0,0.00056712,120]
[342736692,1732090310277,-500.0,0.00056712,120]
[342736693,1732090310286,-583.63,0.00056712,120]
[342736694,1732090310296,-500.0,0.00056712,120]
[342736695,1732090310307,-500.0,0.00056712,120]
[342736696,1732090310317,-1068.5,0.00056712,120]
[342736697,1732090310327,-598.94,0.00056712,120]
[342736698,1732090310337,-1682.29,0.00056712,120]
[342736699,1732090310347,-500.0,0.00056712,120]
[342736700,1732090310357,-254.48198987,0.00056712,120]
[342736701,1732090310367,-500.0,0.00056712,120]
[342736702,1732090310376,-12247.35,0.00056712,120]
[342736703,1732090310385,-1420.1,0.00056712,120]
[342736704,1732090310395,-500.0,0.00056712,120]
[342736705,1732090310405,-1292.82,0.00056712,120]
[342736706,1732090310414,-500.0,0.00056712,120]
[342736707,1732090310423,-302.57557971,0.00056712,120]
[342736708,1732090310432,-500.0,0.00056712,120]
[342736709,1732090310441,-1329.44,0.00056712,120]
[342736710,1732090310450,-1265.92,0.00056712,120]
[342736711,1732090310460,-500.0,0.00056712,120]
[342736712,1732090310469,-500.0,0.00056712,120]
[342736713,1732090310479,-1607.8,0.00056712,120]
[342736714,1732090310487,-500.0,0.00056712,120]
[342736715,1732090310497,-604.09358255,0.00056712,120]
[342736716,1732090310506,-1376.52,0.00056712,120]
[342736717,1732090310515,-500.0,0.00056712,120]
[342736718,1732090310525,-500.0,0.00056712,120]
[342736719,1732090310534,-742.7,0.00056712,20]
[342736720,1732090310543,-843.95,0.00056712,120]
[342736721,1732090310553,-500.0,0.00056712,120]
[342736722,1732090310562,-391.47803169,0.00056712,120]
[342736723,1732090310571,-500.0,0.00056712,120]
[342736724,1732090310580,-500.0,0.00056712,120]
[342736725,1732090310589,-500.0,0.00056712,120]
[342736726,1732090310599,-500.0,0.00056712,120]
[342736727,1732090310608,-500.0,0.00056712,120]
[342736728,1732090310617,-500.0,0.00056712,120]
[342736729,1732090310626,-500.0,0.00056712,120]
[342736730,1732090310635,-500.0,0.00056712,120]
[342736731,1732090310644,-500.0,0.00056712,120]
[342736732,1732090310652,-500.0,0.00056712,120]
[342736733,1732090310661,-1244.57,0.00056712,120]
[342736734,1732090310671,-500.0,0.00056712,120]
[342736735,1732090310680,-1316.06,0.00056712,120]
[342736736,1732090310690,-500.0,0.00056712,120]
[342736737,1732090310700,-500.0,0.00056712,120]
[342736738,1732090310710,-553.01,0.00056712,120]
[342736739,1732090310720,-500.0,0.00056712,120]
[342736740,1732090310731,-721.45,0.00056712,120]
[342736741,1732090310740,-2365.65,0.00056712,120]
[342736742,1732090310750,-510.06,0.00056712,120]
[342736743,1732090310759,-260.36,0.00056712,120]
[342736744,1732090310769,-263.54,0.00056712,120]
[342736745,1732090310781,-500.0,0.00056712,120]
[342736746,1732090310790,-526.18,0.00056712,120]
[342736747,1732090310799,-395.68,0.00056712,120]
[342736748,1732090310809,-500.0,0.00056712,120]
[342736749,1732090310819,-1140.86,0.00056712,120]
[342736750,1732090310829,-1206.39,0.00056712,120]
[342736751,1732090310838,-500.0,0.00056712,120]
[342736752,1732090310848,-851.18,0.00056712,120]
[342736753,1732090310859,-811.24,0.00056712,21]
[342736754,1732090310868,-500.0,0.00056712,120]
[342736755,1732090310877,-500.0,0.00056712,120]
[342736756,1732090310887,-500.0,0.00056712,120]
[342736757,1732090310896,-500.0,0.00056712,120]
[342736758,1732090310905,-500.0,0.00056712,120]
[342736759,1732090310915,-500.0,0.00056712,120]
[342736760,1732090310925,-500.0,0.00056712,120]
[342736761,1732090310934,-500.0,0.00056712,120]
[342736762,1732090310944,-500.0,0.00056712,120]
[342736763,1732090311107,-500.0,0.00056712,120]
[342736764,1732090311116,-500.0,0.00056712,120]
[342736765,1732090311125,-500.0,0.00056712,120]
[342736766,1732090311134,-500.0,0.00056712,120]
[342736767,1732090311144,-207.46,0.00056712,120]
[342736768,1732090311153,-500.0,0.00056712,120]
[342736769,1732090311162,-500.0,0.00056712,120]
[342736770,1732090311171,-468.26,0.00056712,120]
[342736771,1732090311181,-1177.91,0.00056712,120]
[342736772,1732090311190,-500.0,0.00056712,120]
[342736773,1732090311199,-500.0,0.00056712,120]
[342736774,1732090311208,-3911.81,0.00056712,120]
[342736775,1732090311218,-539.1,0.00056712,120]
[342736776,1732090311227,-7513.0,0.00056712,3]
[342736777,1732090311236,-500.0,0.00056712,120]
[342736778,1732090311245,-500.0,0.00056712,120]
[342736779,1732090311255,-810.73,0.00056712,120]
[342736780,1732090311264,-500.0,0.00056712,120]
[342736781,1732090311273,-500.0,0.00056712,120]
[342736782,1732090311284,-500.0,0.00056712,120]
[342736783,1732090311294,-618.5,0.00056712,120]
[342736784,1732090311305,-500.0,0.00056712,120]
[342736785,1732090311315,-500.0,0.00056712,120]
[342736786,1732090311324,-500.0,0.00056712,120]
[342736787,1732090311334,-500.0,0.00056712,120]
[342736788,1732090311343,-500.0,0.00056712,120]
[342736789,1732090311352,-500.0,0.00056712,120]
[342736790,1732090311363,-500.0,0.00056712,21]
[342736791,1732090311374,-500.0,0.00056712,120]
[342736792,1732090311383,-500.0,0.00056712,120]
[342736793,1732090311393,-531.91,0.00056712,60]
[342736794,1732090311401,-625.45641514,0.00056712,120]
[342736795,1732090311410,-500.0,0.00056712,120]
[342736796,1732090311420,-182.74601862,0.00056712,120]
[342736797,1732090311429,-703.55,0.00056712,120]
[342736798,1732090311438,-500.0,0.00056712,120]
[342736799,1732090311447,-500.0,0.00056712,120]
[342736800,1732090311456,-578.53,0.00056712,120]
[342736801,1732090311465,-500.0,0.00056712,120]
[342736802,1732090311474,-500.0,0.00056712,60]
[342736803,1732090311483,-500.0,0.00056712,120]
[342736804,1732090311492,-500.0,0.00056712,120]
[342736805,1732090311501,-500.0,0.00056712,120]
[342736806,1732090311510,-500.0,0.00056712,120]
[342736807,1732090311519,-500.0,0.00056712,120]
[342736808,1732090311529,-1133.36,0.00056712,120]
[342736809,1732090311539,-500.0,0.00056712,120]
[342736810,1732090311547,-500.0,0.00056712,120]
[342736811,1732090311557,-646.34,0.00056712,7]
[342736812,1732090311566,-500.0,0.00056712,120]
[342736813,1732090311575,-500.0,0.00056712,120]
[342736814,1732090311584,-500.0,0.00056712,120]
[342736815,1732090311594,-500.0,0.00056712,120]
[342736816,1732090311603,-1092.33,0.00056712,120]
[342736817,1732090311612,-500.0,0.00056712,120]
[342736818,1732090311621,-500.0,0.00056712,120]
[342736819,1732090311630,-500.0,0.00056712,120]
[342736820,1732090311640,-209.76,0.00056712,120]
[342736821,1732090311649,-576.16,0.00056712,120]
[342736822,1732090311658,-500.0,0.00056712,120]
[342736823,1732090311667,-642.09,0.00056712,3]
[342736824,1732090311676,-1126.69,0.00056712,120]
[342736825,1732090311686,-500.0,0.00056712,120]
[342736826,1732090311695,-705.53,0.00056712,120]
[342736827,1732090311704,-500.0,0.00056712,120]
[342736828,1732090311714,-500.0,0.00056712,120]
[342736829,1732090311723,-1013.55,0.00056712,120]
[342736830,1732090311733,-415.87600915,0.00056712,120]
[342736831,1732090311742,-500.0,0.00056712,120]
[342736832,1732090311752,-1520.14,0.00056712,120]
[342736833,1732090311761,-500.0,0.00056712,120]
[342736834,1732090311770,-500.0,0.00056712,120]
[342736835,1732090311782,-282.31628559,0.00056712,60]
[342736836,1732090311795,-500.0,0.00056712,120]
[342736837,1732090311805,-500.0,0.00056712,120]
[342736838,1732090311815,-500.0,0.00056712,21]
[342736839,1732090311824,-500.0,0.00056712,120]
[342736840,1732090311834,-2168.51,0.00056712,120]
[342736841,1732090311844,-500.0,0.00056712,120]
[342736842,1732090311853,-500.0,0.00056712,120]
[342736843,1732090311862,-500.0,0.00056712,120]
[342736844,1732090311872,-500.0,0.00056712,120]
[342736845,1732090311881,-500.0,0.00056712,120]
[342736846,1732090311891,-500.0,0.00056712,120]
[342736847,1732090311900,-500.0,0.00056712,120]
[342736848,1732090311910,-631.93869316,0.00056712,120]
[342736849,1732090311919,-500.0,0.00056712,120]
[342736850,1732090311928,-500.0,0.00056712,120]
[342736851,1732090311938,-500.0,0.00056712,120]
[342736852,1732090311948,-332.16,0.00056712,120]
[342736853,1732090311957,-594.32,0.00056712,120]
[342736854,1732090311967,-500.0,0.00056712,120]
[342736855,1732090311976,-500.0,0.00056712,120]
[342736856,1732090311985,-500.0,0.00056712,120]
[342736857,1732090311995,-709.11,0.00056712,120]
[342736858,1732090312004,-511.99,0.00056712,120]
[342736859,1732090312014,-500.0,0.00056712,120]
[342736860,1732090312023,-702.33,0.00056712,120]
[342736861,1732090312034,-500.0,0.00056712,120]
[342736862,1732090312044,-500.0,0.00056712,120]
[342736863,1732090312053,-500.0,0.00056712,120]
[342736864,1732090312062,-500.0,0.00056712,120]
[342736865,1732090312072,-500.0,0.00056712,120]
[342736866,1732090312080,-500.0,0.00056712,120]
[342736867,1732090312090,-500.0,0.00056712,120]
[342736868,1732090312099,-500.0,0.00056712,120]
[342736869,1732090312108,-500.0,0.00056712,120]
[342736870,1732090312118,-500.0,0.00056712,120]
[342736871,1732090312127,-500.0,0.00056712,120]
[342736872,1732090312137,-500.0,0.00056712,120]
[342736873,1732090312147,-500.0,0.00056712,120]
[342736874,1732090312157,-500.0,0.00056712,120]
[342736875,1732090312166,-194.11601469,0.00056712,120]
[342736876,1732090312175,-797.68,0.00056712,120]
[342736877,1732090312184,-531.6309218,0.00056712,120]
[342736878,1732090312194,-500.0,0.00056712,120]
[342736879,1732090312203,-500.0,0.00056712,120]
[342736880,1732090312212,-500.0,0.00056712,120]
[342736881,1732090312222,-500.0,0.00056712,120]
[342736882,1732090312233,-500.0,0.00056712,120]
[342736883,1732090312243,-500.0,0.00056712,120]
[342736884,1732090312252,-500.0,0.00056712,120]
[342736885,1732090312262,-500.0,0.00056712,120]
[342736886,1732090312271,-500.0,0.00056712,120]
[342736887,1732090312282,-500.0,0.00056712,120]
[342736888,1732090312291,-500.0,0.00056712,120]
[342736889,1732090312304,-500.0,0.00056712,120]
[342736890,1732090312313,-500.0,0.00056712,120]
[342736891,1732090312323,-500.0,0.00056712,120]
[342736892,1732090312332,-500.0,0.00056712,120]
[342736893,1732090312342,-500.0,0.00056712,120]
[342736894,1732090312351,-500.0,0.00056712,120]
[342736895,1732090312360,-500.0,0.00056712,120]
[342736896,1732090312369,-500.0,0.00056712,120]
[342736897,1732090312380,-500.0,0.00056712,120]
[342736898,1732090312390,-500.0,0.00056712,120]
[342736899,1732090312399,-500.0,0.00056712,120]
[342736900,1732090312408,-500.0,0.00056712,120]
[342736901,1732090312418,-500.0,0.00056712,120]
[342736902,1732090312427,-500.0,0.00056712,120]
[342736903,1732090312436,-238.31859117,0.00056712,120]
[342736904,1732090312445,-500.0,0.00056712,120]
[342736905,1732090312455,-500.0,0.00056712,120]
[342736906,1732090312464,-500.0,0.00056712,120]
[342736907,1732090312473,-500.0,0.00056712,120]
[342736908,1732090312483,-150.0,0.00056712,120]
[342736909,1732090312493,-500.0,0.00056712,120]
[342736910,1732090312502,-500.0,0.00056712,120]
[342736911,1732090312511,-500.0,0.00056712,120]
[342736912,1732090312521,-500.0,0.00056712,120]
[342736913,1732090312532,-500.0,0.00056712,120]
[342736914,1732090312541,-500.0,0.00056712,120]
[342736915,1732090312551,-500.0,0.00056712,120]
[342736916,1732090312560,-500.0,0.00056712,120]
[342736917,1732090312569,-500.0,0.00056712,120]
[342736918,1732090312579,-500.0,0.00056712,120]
[342736919,1732090312588,-500.0,0.00056712,120]
[342736920,1732090312598,-500.0,0.00056712,120]
[342736921,1732090312607,-514.31,0.00056712,120]
[342736922,1732090312616,-299.7,0.00056712,120]
[342736923,1732090312626,-500.0,0.00056712,120]
[342736924,1732090312635,-500.0,0.00056712,120]
[342736925,1732090312644,-500.0,0.00056712,120]
[342736926,1732090312653,-500.0,0.00056712,120]
[342736927,1732090312663,-500.0,0.00056712,120]
[342736928,1732090312672,-500.0,0.00056712,120]
[342736929,1732090312681,-500.0,0.00056712,120]
[342736930,1732090312690,-500.0,0.00056712,120]
[342736931,1732090312700,-500.0,0.00056712,120]
[342736932,1732090312712,-849.65,0.00056712,120]
[342736933,1732090312721,-500.0,0.00056712,120]
[342736934,1732090312730,-500.0,0.00056712,120]
[342736935,1732090312740,-500.0,0.00056712,120]
[342736936,1732090312749,-631.33886081,0.00056712,120]
[342736937,1732090312760,-500.0,0.00056712,120]
[342736938,1732090312770,-500.0,0.00056712,120]
[342736939,1732090312785,-569.0,0.00056712,120]
[342736940,1732090312795,-500.0,0.00056712,120]
[342736941,1732090312805,-500.0,0.00056712,120]
[342736942,1732090312815,-500.0,0.00056712,120]
[342736943,1732090312824,-500.0,0.00056712,120]
[342736944,1732090312835,-2068.02,0.00056712,120]
[342736945,1732090312844,-700.75,0.00056712,120]
[342736946,1732090312854,-500.0,0.00056712,120]
[342736947,1732090312864,-500.0,0.00056712,120]
[342736948,1732090312874,-798.52,0.00056712,120]
[342736949,1732090312884,-1516.88,0.00056712,120]
[342736950,1732090312893,-500.0,0.00056712,120]
[342736951,1732090312903,-1000.0,0.00056712,120]
[342736952,1732090312912,-982.26,0.00056712,120]
[342736953,1732090312923,-500.0,0.00056712,120]
[342736954,1732090312932,-500.0,0.00056712,120]
[342736955,1732090312942,-500.0,0.00056712,120]
[342736956,1732090312952,-500.0,0.00056712,120]
[342736957,1732090312961,-508.85113368,0.00056712,120]
[342736958,1732090312970,-650.76,0.00056712,21]
[342736959,1732090312981,-500.0,0.00056712,120]
[342736960,1732090312991,-500.0,0.00056712,120]
[342736961,1732090313000,-500.0,0.00056712,120]
[342736962,1732090313010,-500.0,0.00056712,120]
[342736963,1732090313019,-500.0,0.00056712,30]
[342736964,1732090313031,-533.13728407,0.00056712,120]
[342736965,1732090313041,-998.06,0.00056712,120]
[342736966,1732090313050,-500.0,0.00056712,120]
[342736967,1732090313060,-500.0,0.00056712,120]
[342736968,1732090313070,-2581.57,0.00056712,120]
[342736969,1732090313079,-500.0,0.00056712,120]
[342736970,1732090313089,-500.0,0.00056712,120]
[342736971,1732090313098,-635.36,0.00056712,120]
[342736972,1732090313107,-500.0,0.00056712,120]
[342736973,1732090313117,-519.01674405,0.00056712,120]
[342736974,1732090313127,-500.0,0.00056712,120]
[342736975,1732090313138,-523.52855345,0.00056712,120]
[342736976,1732090313149,-500.0,0.00056712,120]
[342736977,1732090313159,-500.0,0.00056712,120]
[342736978,1732090313168,-3061.68,0.00056712,120]
[342736979,1732090313178,-500.0,0.00056712,120]
[342736980,1732090313187,-2031.6,0.00056712,120]
[342736981,1732090313196,-500.0,0.00056712,120]
[342736982,1732090313206,-500.0,0.00056712,120]
[342736983,1732090313216,-500.0,0.00056712,120]
[342736984,1732090313226,-376.7281463,0.00056712,120]
[342736985,1732090313236,-3206.56,0.00056712,120]
[342736986,1732090313245,-500.0,0.00056712,120]
[342736987,1732090313255,-711.44,0.00056712,120]
[342736988,1732090313264,-500.0,0.00056712,120]
[342736989,1732090313274,-500.0,0.00056712,120]
[342736990,1732090313292,-500.0,0.00056712,120]
[342736991,1732090313305,-500.0,0.00056712,120]
[342736992,1732090313314,-729.82,0.00056712,120]
[342736993,1732090313334,-5192.93,0.00056712,120]
[342736994,1732090313345,-500.0,0.00056712,120]
[342736995,1732090313355,-500.0,0.00056712,120]
[342736996,1732090313364,-289.1604186,0.00056712,120]
[342736997,1732090313375,-500.0,0.00056712,120]
[342736998,1732090313385,-500.0,0.00056712,120]
[342736999,1732090313394,-486.24667507,0.00056712,120]
[342737000,1732090313404,-500.0,0.00056712,120]
[342737001,1732090313413,-422.56688896,0.00056712,120]
[342737002,1732090313422,-500.0,0.00056712,120]
[342737003,1732090313431,-500.0,0.00056712,120]
[342737004,1732090313441,-500.0,0.00056712,120]
[342737005,1732090313450,-500.0,0.00056712,120]
[342737006,1732090313460,-501.04366933,0.00056712,120]
[342737007,1732090313470,-500.0,0.00056712,120]
[342737008,1732090313480,-707.74,0.00056712,120]
[342737009,1732090313489,-500.0,0.00056712,120]
[342737010,1732090313499,-647.87,0.00056712,120]
[342737011,1732090313509,-500.0,0.00056712,120]
[342737012,1732090313519,-500.0,0.00056712,120]
[342737013,1732090313529,-500.0,0.00056712,120]
[342737014,1732090313539,-386.36172301,0.00056712,120]
[342737015,1732090313548,-720.2,0.00056712,120]
[342737016,1732090313557,-500.0,0.00056712,120]
[342737017,1732090313567,-500.0,0.00056712,120]
[342737018,1732090313759,-500.0,0.00056712,120]
[342737019,1732090313769,-717.59,0.00056712,120]
[342737020,1732090313781,-1703.66,0.00056712,120]
[342737021,1732090313790,-508.31,0.00056712,120]
[342737022,1732090313800,-500.0,0.00056712,120]
[342737023,1732090313810,-500.0,0.00056712,120]
[342737024,1732090313819,-500.0,0.00056712,120]
[342737025,1732090313829,-500.0,0.00056712,120]
[342737026,1732090313838,-514.1483017,0.00056712,120]
[342737027,1732090313848,-500.0,0.00056712,120]
[342737028,1732090313857,-545.650632,0.00056712,120]
[342737029,1732090313866,-500.0,0.00056712,120]
[342737030,1732090313875,-2604.2,0.00056712,120]
[342737031,1732090313885,-500.0,0.00056712,120]
[342737032,1732090313894,-2810.53,0.00056712,120]
[342737033,1732090313904,-500.0,0.00056712,120]
[342737034,1732090313914,-500.0,0.00056712,120]
[342737035,1732090313924,-500.0,0.00056712,120]
[342737036,1732090313934,-2080.78,0.00056712,120]
[342737037,1732090313944,-500.0,0.00056712,120]
[342737038,1732090313954,-500.22,0.00056712,120]
[342737039,1732090313963,-1137.2,0.00056712,3]
[342737040,1732090313973,-642.24,0.00056712,30]
[342737041,1732090313983,-1301.4,0.00056712,120]
[342737042,1732090313993,-503.91287726,0.00056712,120]
[342737043,1732090314002,-548.88318294,0.00056712,120]
[342737044,1732090314012,-500.0,0.00056712,120]
[342737045,1732090314022,-284.54287417,0.00056712,120]
[342737046,1732090314034,-505.72,0.00056712,120]
[342737047,1732090314043,-636.10252071,0.00056712,120]
[342737048,1732090314053,-500.0,0.00056712,120]
[342737049,1732090314062,-625.63000854,0.00056712,120]
[342737050,1732090314071,-500.0,0.00056712,120]
[342737051,1732090314081,-500.0,0.00056712,120]
[342737052,1732090314091,-500.0,0.00056712,120]
[342737053,1732090314101,-500.0,0.00056712,120]
[342737054,1732090314111,-946.93,0.00056712,120]
[342737055,1732090314121,-500.0,0.00056712,120]
[342737056,1732090314130,-500.0,0.00056712,120]
[342737057,1732090314139,-500.0,0.00056712,120]
[342737058,1732090314149,-500.0,0.00056712,120]